bitfinex/quotes_ETHUSD_20251224
["timestamp","ask_amount","ask_price","bid_price","bid_amount"]
[1766565722551,0.001,2930.8,2930.4,3.021]
[1766565723180,0.001,2930.8,2930.5,3.05512386]
[1766565724075,0.001,2930.9,2930.5,3.05512386]
[1766565724390,0.001,2930.9,2930.5,3.021]
[1766565727182,4.7667,2931.2,2930.5,3.0175]
[1766565727490,8.17828577,2931.2,2930.5,3.0175]
[1766565727683,4.7657,2931.1,2930.5,3.0175]
[1766565728176,0.001,2930.8,2930.5,3.0175]
[1766565730379,4.7667,2930.8,2930.0,0.6472905]
[1766565730579,4.7667,2930.8,2930.1,3.0164]
[1766565731485,4.7667,2930.8,2930.2,3.0161]
[1766565731683,4.7667,2930.8,2930.3,0.64288953]
[1766565732458,4.7667,2930.8,2930.0,0.6472905]
[1766565732691,4.7667,2930.8,2929.9,6.42878054]
[1766565733193,4.7667,2930.8,2929.9,3.41308054]
[1766565733396,4.7667,2930.8,2930.0,3.0154]
[1766565735091,4.7667,2930.8,2930.0,3.0174]
[1766565737161,4.7667,2930.8,2930.0,6.43035282]
[1766565740398,4.7667,2930.8,2930.1,3.0132]
[1766565740584,4.7667,2930.8,2930.1,7.50183829]
[1766565740902,4.7667,2930.8,2930.2,3.04702736]
[1766565741368,0.001,2930.8,2930.2,3.04702736]
[1766565743200,4.7667,2930.8,2930.2,3.04702736]
[1766565744130,4.7667,2930.8,2930.2,3.0129]
[1766565747620,4.7667,2930.8,2930.4,3.0104]
[1766565752930,5.24347,2930.8,2930.1,0.002]
[1766565753131,4.7667,2930.8,2930.1,0.002]
[1766565753736,4.7667,2930.8,2930.1,3.011]
[1766565757952,4.7667,2930.8,2930.2,3.0077]
[1766565761750,4.7667,2930.8,2930.1,0.002]
[1766565762633,4.7667,2930.8,2930.1,3.0088]
[1766565769858,4.7667,2930.8,2930.1,0.002]
[1766565770047,5.58466335,2930.8,2930.1,0.002]
[1766565779754,4.7667,2930.8,2930.1,3.0047]
[1766565784056,4.7667,2930.8,2930.2,3.0019]
[1766565785481,4.7667,2930.8,2930.4,4.48863829]
[1766565785674,4.7667,2930.8,2930.5,3.0016]
[1766565785675,0.001,2930.8,2930.5,3.0016]
[1766565789981,0.001,2930.9,2930.5,3.0016]
[1766565790281,0.001,2930.9,2930.6,3.0]
[1766565790778,4.6501,2930.9,2930.5,0.30357262]
[1766565791083,4.6501,2930.9,2930.5,3.30347262]
[1766565791458,4.6501,2930.9,2930.6,2.9999]
[1766565792180,4.6501,2930.9,2930.5,0.30357262]
[1766565792382,4.6501,2930.9,2930.2,2.9997]
[1766565792588,4.41028353,2930.9,2930.3,3.2385]
[1766565794673,4.41028353,2930.9,2930.5,0.002]
[1766565794989,4.41128353,2930.9,2930.5,0.002]
[1766565795485,0.001,2930.9,2930.5,3.2409]
[1766565795688,0.001,2930.9,2930.6,3.239]
[1766565796564,4.6501,2931.2,2930.6,3.239]
[1766565798317,0.01363001,2931.7,2930.6,3.239]
[1766565798318,4.6501,2932.0,2931.1,4.48863829]
[1766565798898,4.6501,2932.0,2931.4,4.48863829]
[1766565799275,4.6501,2932.0,2931.3,4.48863829]
[1766565800070,4.63986494,2932.0,2931.3,4.48863829]
[1766565800469,8.05050798,2932.0,2931.3,4.48863829]
[1766565800685,4.6491,2931.8,2931.3,4.48863829]
[1766565802077,4.6491,2931.8,2931.1,1.0241372]
[1766565802880,4.6491,2931.8,2931.1,4.43582512]
[1766565803600,4.6491,2931.8,2931.1,1.0241372]
[1766565803797,0.001,2932.0,2931.1,4.43576147]
[1766565803998,4.6501,2932.0,2931.2,1.26731456]
[1766565804203,4.6501,2932.0,2931.2,2.29145176]
[1766565806103,4.6501,2932.0,2931.2,5.70300435]
[1766565806614,4.6501,2932.0,2931.3,4.48445414]
[1766565806815,4.6501,2932.0,2931.4,0.03411339]
[1766565807108,4.7003,2932.3,2931.6,4.48445414]
[1766565807279,0.001,2932.4,2931.7,0.0341099]
[1766565807477,0.001,2932.4,2931.6,4.48445414]
[1766565807682,4.7003,2932.6,2931.9,4.47421908]
[1766565808296,3.40950899,2933.0,2931.9,4.47421908]
[1766565808297,4.7003,2933.0,2931.9,5.36511647]
[1766565808495,4.7003,2933.0,2932.0,1.0237877]
[1766565810092,3.40959459,2932.9,2932.0,1.0237877]
[1766565810393,4.7003,2932.8,2932.0,1.0237877]
[1766565810934,4.7003,2932.8,2932.2,4.48445414]
[1766565811088,4.7003,2932.8,2932.3,0.03410292]
[1766565811500,5.0596,2933.1,2932.3,0.03410292]
[1766565811906,5.0596,2933.1,2932.2,4.48445414]
[1766565812108,3.40941443,2933.1,2932.2,4.48445414]
[1766565812296,5.0596,2933.0,2932.0,1.0237877]
[1766565812500,5.74157426,2933.0,2932.0,1.0237877]
[1766565813817,5.74157426,2933.0,2932.2,7.89483517]
[1766565814030,5.0596,2933.0,2932.3,0.03410292]
[1766565814235,0.001,2933.2,2932.6,1.6209]
[1766565814540,0.001,2933.2,2932.4,6.82035192]
[1766565814541,5.0596,2933.9,2932.9,2.76796773]
[1766565814708,5.0596,2933.9,2933.1,2.7816]
[1766565815129,5.04937122,2933.9,2933.1,2.7816]
[1766565815328,5.0596,2933.7,2933.1,2.7816]
[1766565817711,5.0596,2934.0,2933.2,2.86579245]
[1766565817912,5.0596,2934.0,2933.2,2.8317]
[1766565818816,5.0596,2934.0,2933.3,2.87869129]
[1766565819022,0.001,2934.2,2933.5,2.8446]
[1766565819216,0.001,2934.2,2933.7,2.8446]
[1766565819412,5.0606,2934.4,2933.9,2.83437122]
[1766565819741,0.52775749,2934.4,2933.9,2.83437122]
[1766565819926,0.001,2934.4,2934.1,2.8462]
[1766565820339,0.1977496,2934.5,2934.1,2.8462]
[1766565820720,8.66508659,2934.5,2934.1,2.8462]
[1766565820921,5.0596,2934.4,2933.7,2.8588]
[1766565823451,3.60549722,2934.5,2933.7,2.8588]
[1766565823648,5.099,2934.4,2933.6,1.02326041]
[1766565823853,5.099,2934.4,2933.7,2.9081]
[1766565824840,5.099,2934.2,2933.3,2.9201]
[1766565825189,5.099,2934.2,2933.1,3.94352448]
[1766565825723,5.099,2934.2,2933.1,1.02342448]
[1766565825923,5.099,2934.2,2933.2,2.932]
[1766565826126,5.099,2934.0,2933.2,2.932]
[1766565827333,5.099,2933.8,2933.0,0.002]
[1766565827755,5.099,2933.8,2933.0,1.02548732]
[1766565828127,5.099,2933.8,2933.0,0.002]
[1766565828328,5.099,2933.6,2933.0,0.002]
[1766565828845,0.21137961,2934.5,2933.0,0.002]
[1766565828846,5.099,2934.3,2933.3,1.7751]
[1766565829253,5.099,2934.3,2933.4,3.40901343]
[1766565829553,5.96956707,2934.3,2933.5,1.7751]
[1766565830257,5.099,2934.2,2933.6,1.02332673]
[1766565830964,5.099,2934.2,2933.6,2.82362673]
[1766565831171,5.099,2934.2,2933.7,0.03408664]
[1766565832438,5.099,2934.2,2933.6,2.82362673]
[1766565833335,5.099,2934.0,2933.6,0.65589142]
[1766565833539,5.099,2934.0,2933.0,0.002]
[1766565833540,5.099,2933.9,2933.0,0.002]
[1766565834147,5.099,2933.9,2933.0,1.839]
[1766565835773,3.40854863,2933.8,2933.0,1.839]
[1766565836078,5.78070149,2933.7,2933.0,1.839]
[1766565838177,9.18938915,2933.7,2933.0,1.839]
[1766565838676,5.78070149,2933.7,2933.0,1.839]
[1766565838871,3.40835463,2934.0,2933.0,5.2484612]
[1766565838872,8.50734047,2934.0,2933.0,5.2484612]
[1766565839184,10.40209784,2934.3,2933.2,1.9066]
[1766565839343,5.099,2934.2,2933.4,1.9066]
[1766565839546,5.099,2934.2,2933.0,6.82093954]
[1766565839547,5.099,2934.2,2933.6,1.9066]
[1766565839960,5.099,2934.2,2933.2,1.9178]
[1766565840276,5.099,2934.0,2933.2,1.9178]
[1766565840471,5.099,2934.0,2933.3,2.55285349]
[1766565840656,5.099,2934.0,2933.3,1.9178]
[1766565842278,6.81640024,2934.1,2933.1,0.002]
[1766565842279,4.7466,2933.8,2933.1,0.002]
[1766565842670,4.7466,2933.8,2933.1,1.9526]
[1766565844786,3.40857866,2933.8,2933.1,1.9526]
[1766565844962,4.7466,2933.7,2933.1,0.002]
[1766565845159,4.7466,2933.5,2933.1,0.002]
[1766565848288,8.1555195,2933.5,2933.1,0.002]
[1766565848501,4.7466,2933.4,2932.5,3.03029907]
[1766565848796,4.7466,2933.4,2932.5,2.0168]
[1766565849111,6.817839,2933.5,2932.4,2.0168]
[1766565849112,4.7466,2933.2,2932.4,2.0168]
[1766565849798,4.7466,2933.2,2933.0,0.002]
[1766565850497,4.7466,2933.0,2932.3,2.0287]
[1766565853492,4.7466,2932.9,2932.3,2.0287]
[1766565855275,5.56221442,2932.9,2932.3,2.0287]
[1766565855586,4.22523206,2932.9,2932.3,2.0287]
[1766565855792,4.7466,2932.8,2932.3,2.0287]
[1766565855994,4.7466,2932.8,2932.0,2.0861]
[1766565856766,4.7466,2932.8,2932.3,0.002]
[1766565856966,4.7466,2932.7,2932.3,0.002]
[1766565865883,4.7466,2932.6,2932.0,2.1493]
[1766565866386,4.7466,2932.6,2931.9,0.002]
[1766565866811,4.7466,2932.6,2932.0,2.156]
[1766565867016,4.7466,2932.6,2932.0,2.71288137]
[1766565868117,4.7466,2932.6,2932.1,2.1583]
[1766565869016,4.7466,2932.5,2932.1,2.1583]
[1766565869326,4.7466,2932.5,2931.9,2.1625]
[1766565873736,4.7466,2932.5,2931.9,5.57325368]
[1766565874042,5.2831,2932.8,2932.1,2.1714]
[1766565874246,8.69283002,2932.8,2932.1,2.1714]
[1766565874813,5.2831,2932.8,2932.1,2.1714]
[1766565875454,8.69281414,2932.8,2932.1,2.1714]
[1766565875952,5.2831,2932.7,2932.1,2.1714]
[1766565878249,5.2318,2933.0,2932.2,2.1817]
[1766565878542,5.2318,2933.0,2932.4,2.1817]
[1766565878713,5.2318,2933.0,2932.5,2.21790059]
[1766565879540,5.2318,2933.0,2932.5,2.1838]
[1766565880541,3.41048118,2933.0,2932.5,2.1838]
[1766565880830,5.2308,2932.9,2932.5,2.1838]
[1766565882571,0.001,2933.0,2932.5,2.1838]
[1766565883143,5.2318,2933.0,2932.5,2.1838]
[1766565883760,0.001,2933.0,2932.7,2.1934]
[1766565885288,0.001,2933.0,2932.1,2.4137]
[1766565885289,5.2308,2932.9,2932.1,2.4137]
[1766565885574,5.2308,2932.9,2932.1,2.44780524]
[1766565885875,5.75398,2932.9,2932.1,2.4137]
[1766565886168,5.75398,2932.9,2932.0,0.002]
[1766565886674,5.2308,2932.7,2932.0,2.4198]
[1766565889289,5.2308,2932.7,2932.0,5.83043968]
[1766565889592,5.2308,2932.7,2932.1,2.4219]
[1766565893690,6.14726223,2932.7,2932.1,2.4219]
[1766565895391,6.14726223,2932.7,2932.0,0.002]
[1766565895587,6.14726223,2932.7,2932.0,2.4374]
[1766565896095,6.14826223,2932.7,2932.0,2.4374]
[1766565897194,5.2308,2932.6,2932.0,2.4374]
[1766565897400,3.41026217,2932.4,2931.4,3.41126553]
[1766565897696,5.2308,2932.3,2931.5,2.4449]
[1766565900502,5.2308,2932.2,2931.4,2.4485]
[1766565900693,5.2308,2932.0,2931.4,2.4485]
[1766565901998,5.2308,2932.0,2931.1,5.8656139]
[1766565902181,5.2308,2932.0,2931.1,0.002]
[1766565902367,5.1724,2931.8,2931.1,0.002]
[1766565902798,5.1724,2931.8,2931.0,0.002]
[1766565903005,5.1724,2931.6,2931.0,0.002]
[1766565904593,5.1724,2931.5,2931.0,0.002]
[1766565906421,1.1993915,2931.7,2931.0,2.4648]
[1766565906585,8.58318119,2931.9,2931.4,2.4628]
[1766565906586,5.1724,2931.9,2931.4,2.4628]
[1766565906781,5.1724,2931.9,2931.4,2.49691339]
[1766565906987,5.1724,2932.2,2931.5,2.4644]
[1766565907286,5.1724,2932.2,2931.7,2.4644]
[1766565908095,5.1724,2932.2,2931.4,0.69793092]
[1766565908417,5.1724,2932.1,2931.2,2.466]
[1766565908591,5.1724,2931.9,2931.2,2.466]
[1766565911407,5.1724,2931.9,2931.6,0.002]
[1766565912212,7.89249477,2932.5,2931.6,2.4744]
[1766565912213,5.1724,2932.5,2931.6,2.4744]
[1766565913012,5.1724,2932.3,2931.6,2.4744]
[1766565913213,6.37167519,2932.3,2931.6,2.4744]
[1766565913513,6.37167519,2932.3,2931.6,0.002]
[1766565914620,6.37167519,2932.3,2931.1,3.4116328]
[1766565915122,6.37167519,2932.3,2931.1,5.8906328]
[1766565915508,5.1724,2932.1,2931.2,2.479]
[1766565915704,5.1724,2932.1,2931.3,3.06956328]
[1766565916995,5.1724,2932.1,2931.4,0.03411339]
[1766565917195,5.1724,2932.1,2931.5,2.482]
[1766565918321,3.41054339,2932.1,2931.5,2.482]
[1766565918520,5.1724,2932.0,2931.5,2.482]
[1766565927122,5.1724,2932.0,2931.5,2.484]
[1766565932553,0.001,2932.2,2931.5,2.484]
[1766565933055,5.2857,2932.2,2931.5,2.484]
[1766565933369,6.15530706,2932.2,2931.6,2.4915]
[1766565934062,0.001,2932.2,2931.7,0.0341099]
[1766565934352,5.2847,2932.5,2931.9,2.4906]
[1766565935048,0.001,2932.7,2932.1,2.4908]
[1766565935636,5.2857,2932.7,2932.1,2.4908]
[1766565936036,0.001,2932.2,2932.1,2.4908]
[1766565938249,0.001,2932.2,2932.1,3.0809485]
[1766565939542,5.2857,2932.7,2932.2,2.4905]
[1766565940552,0.001,2932.7,2932.3,2.4907]
[1766565943052,5.3561,2932.7,2932.3,2.4907]
[1766565944241,0.001,2932.7,2932.3,2.4907]
[1766565944448,0.001,2933.0,2932.4,2.4893]
[1766565944758,5.3561,2933.0,2932.4,2.4893]
[1766565951576,0.001,2933.0,2932.5,2.4903]
[1766565951774,8.76432141,2933.3,2932.6,2.4895]
[1766565951975,5.3551,2933.2,2932.6,2.4895]
[1766565953650,8.76442567,2933.2,2932.6,2.4895]
[1766565953979,5.3551,2933.1,2932.6,2.4895]
[1766565954980,5.3551,2933.1,2932.2,2.4899]
[1766565955745,3.40947834,2933.0,2932.2,2.4899]
[1766565955950,5.3551,2932.9,2932.2,2.4899]
[1766565956176,5.3551,2932.9,2932.0,3.41263208]
[1766565956372,6.57250144,2932.9,2932.0,5.90283208]
[1766565956572,6.57250144,2932.9,2932.1,5.90070964]
[1766565956872,6.57250144,2932.9,2932.2,2.4903]
[1766565957956,5.3551,2932.8,2932.2,2.4903]
[1766565963184,4.9716,2933.0,2932.4,2.491]
[1766565963486,5.93154557,2933.0,2932.4,2.491]
[1766565966586,5.93154557,2933.0,2932.4,2.493]
[1766565968280,4.9726,2933.2,2932.4,2.52710175]
[1766565968481,4.9726,2933.2,2932.4,5.90316329]
[1766565968680,4.9726,2933.2,2932.5,2.4917]
[1766565968889,4.9726,2933.2,2932.5,2.52580059]
[1766565969088,4.9726,2933.2,2932.6,2.52579943]
[1766565969295,4.9726,2933.2,2932.6,2.4917]
[1766565971405,8.38185869,2933.2,2932.6,2.4917]
[1766565971708,4.9716,2933.1,2932.6,2.4917]
[1766565974590,4.9716,2933.0,2932.4,0.002]
[1766565974996,4.9716,2933.0,2932.4,2.4944]
[1766565975214,4.9716,2933.0,2932.4,2.74384]
[1766565982639,4.9726,2933.0,2932.4,2.74384]
[1766565982817,4.9716,2932.9,2932.4,0.002]
[1766565985416,0.001,2933.0,2932.4,2.4404]
[1766565986385,0.001,2933.0,2932.6,2.4251]
[1766565987721,4.9726,2933.0,2932.4,2.401]
[1766565988214,5.32378226,2933.0,2932.4,2.401]
[1766565988422,4.9726,2933.0,2932.4,2.401]
[1766565992231,0.001,2933.0,2932.5,2.3485]
[1766565992828,5.0837,2933.0,2932.5,2.3485]
[1766565993920,0.001,2933.0,2932.5,2.3485]
[1766565994334,0.001,2933.0,2932.6,2.3242]
[1766565994535,5.0837,2933.2,2932.8,2.3242]
[1766565994536,0.001,2933.2,2932.8,2.3242]
[1766565994846,0.001,2933.2,2932.9,2.34429594]
[1766565995935,0.001,2933.2,2932.9,2.3102]
[1766565997252,5.0837,2933.2,2932.6,2.2867]
[1766565997452,5.0837,2933.2,2932.6,2.85657353]
[1766565998025,0.001,2933.0,2932.6,2.85657353]
[1766565998230,5.0837,2933.0,2932.4,0.002]
[1766565999856,5.0837,2933.0,2932.4,2.2543]
[1766566002355,5.0837,2933.0,2932.5,2.2192]
[1766566003457,0.001,2933.2,2932.5,2.2074]
[1766566003865,4.8512,2933.1,2932.5,2.2074]
[1766566005042,4.8512,2933.1,2932.6,2.1862]
[1766566005242,0.001,2933.0,2932.6,2.1862]
[1766566005449,0.001,2933.2,2932.7,0.03409827]
[1766566005649,0.001,2933.4,2932.8,2.1842]
[1766566005844,0.001,2933.4,2933.0,2.1737]
[1766566007357,0.001,2933.4,2933.0,2.39107]
[1766566008161,4.8522,2933.4,2933.0,2.39107]
[1766566008532,0.001,2933.4,2933.0,2.39107]
[1766566009960,4.8522,2933.4,2933.0,0.21737]
[1766566010159,4.8522,2933.4,2932.7,3.40976669]
[1766566010160,4.8522,2933.4,2932.7,2.1332]
[1766566010462,4.8522,2933.4,2932.9,2.1332]
[1766566012662,4.8522,2933.4,2932.6,2.1136]
[1766566014246,4.8522,2933.4,2932.6,5.52351662]
[1766566014449,4.8522,2933.4,2932.8,2.0945]
[1766566014852,4.8522,2933.4,2932.5,3.41196527]
[1766566015040,4.8522,2933.4,2932.5,5.49706527]
[1766566015643,4.8522,2933.4,2932.5,5.47866527]
[1766566015949,4.8522,2933.4,2932.5,2.0687]
[1766566015950,4.8512,2933.3,2932.5,2.0687]
[1766566016154,4.8512,2933.1,2932.5,2.0687]
[1766566016844,4.8512,2933.0,2932.5,0.002]
[1766566021077,4.8512,2933.0,2932.5,2.0243]
[1766566021272,4.8512,2933.0,2932.5,0.002]
[1766566022143,8.26070548,2933.0,2932.5,0.002]
[1766566022450,5.85680826,2932.9,2932.0,5.4283081]
[1766566022849,4.6897,2932.8,2932.0,2.0177]
[1766566023050,4.6897,2932.8,2932.1,2.0093]
[1766566023465,4.6897,2932.8,2932.3,2.0093]
[1766566023779,0.58568083,2932.7,2932.3,2.0093]
[1766566027453,4.6897,2932.7,2932.1,1.9764]
[1766566029380,4.6897,2932.7,2932.2,1.9605]
[1766566029678,4.6897,2932.7,2932.2,1.99460408]
[1766566029853,4.6907,2932.7,2932.2,1.99460408]
[1766566030256,4.6897,2933.0,2932.3,1.9517]
[1766566030488,4.6897,2933.0,2932.5,1.9517]
[1766566031375,8.09919074,2933.0,2932.5,1.9517]
[1766566031576,4.6897,2932.9,2932.5,1.9517]
[1766566032877,4.6897,2932.9,2932.1,1.9287]
[1766566033080,4.6897,2932.7,2932.1,3.44462673]
[1766566033294,4.6897,2932.7,2932.2,1.9287]
[1766566033984,4.6897,2932.9,2932.4,1.9213]
[1766566034387,0.01363001,2932.8,2932.0,0.002]
[1766566034569,4.6897,2932.7,2932.0,0.002]
[1766566034975,4.6897,2932.7,2932.0,1.9159]
[1766566035176,4.6897,2932.7,2932.1,1.9139]
[1766566035403,4.6897,2932.7,2932.1,1.94800524]
[1766566036607,4.6897,2932.7,2932.1,1.9139]
[1766566037404,4.6907,2932.7,2932.1,1.9139]
[1766566038073,4.6897,2932.6,2932.1,1.9139]
[1766566038404,5.51474601,2932.6,2932.1,1.9139]
[1766566038592,5.51474601,2932.6,2932.0,0.002]
[1766566041407,5.501116,2932.6,2932.0,0.002]
[1766566042109,4.6897,2932.5,2931.5,2.89051]
[1766566042277,4.6897,2932.3,2931.6,1.8666]
[1766566043505,4.6897,2932.3,2931.6,5.27768049]
[1766566043712,4.6897,2932.3,2931.7,1.8782099]
[1766566045416,4.6907,2932.3,2931.7,1.8441]
[1766566045612,5.50214229,2932.3,2931.7,1.8441]
[1766566049713,4.6897,2932.2,2931.7,1.8441]
[1766566052327,4.6897,2932.2,2931.5,0.002]
[1766566052613,4.9755,2932.1,2931.5,0.002]
[1766566053023,6.82083704,2932.2,2931.2,0.002]
[1766566053024,4.9755,2931.9,2931.2,0.002]
[1766566053197,0.01363001,2932.0,2931.2,0.002]
[1766566053198,4.9755,2931.7,2931.2,0.002]
[1766566055849,4.9605,2931.4,2930.7,0.002]
[1766566056009,4.9605,2931.2,2930.4,0.002]
[1766566056312,4.9605,2931.0,2930.4,0.002]
[1766566057531,4.9605,2931.0,2930.3,0.002]
[1766566057734,4.9605,2930.8,2930.3,0.002]
[1766566060339,4.9605,2930.8,2930.0,1.70617471]
[1766566060340,4.9605,2930.7,2930.0,1.70617471]
[1766566060636,4.9605,2930.5,2930.0,1.70617471]
[1766566061610,4.9605,2930.5,2929.8,3.41315093]
[1766566061943,4.9605,2930.3,2929.8,5.07415093]
[1766566062313,4.9605,2931.0,2930.0,1.661]
[1766566062647,5.8405,2931.0,2930.0,1.661]
[1766566063531,5.8405,2931.0,2930.2,1.6522]
[1766566064608,0.88,2930.9,2930.2,1.6522]
[1766566064812,4.9605,2930.8,2930.2,1.6522]
[1766566065241,4.9605,2930.8,2930.2,1.6419611]
[1766566065440,5.45288093,2930.8,2929.9,1.6247]
[1766566065619,4.9605,2930.7,2929.9,1.6247]
[1766566065823,4.9605,2930.7,2930.0,1.6163]
[1766566066221,0.49238093,2930.8,2930.2,1.6163]
[1766566066438,0.881,2930.8,2930.2,1.6163]
[1766566067128,5.8415,2930.8,2930.2,1.6163]
[1766566067814,5.8415,2930.8,2930.0,1.63372969]
[1766566068014,5.8415,2930.8,2930.2,1.5996]
[1766566068630,5.8415,2930.8,2930.2,5.01233148]
[1766566068939,0.58415,2930.7,2930.2,1.5996]
[1766566070341,4.9605,2930.7,2930.2,1.5996]
[1766566070652,4.9605,2930.7,2930.0,3.41291513]
[1766566070653,4.9605,2930.7,2930.0,4.98831513]
[1766566071881,4.9605,2930.7,2930.0,1.5754]
[1766566072750,4.9605,2930.6,2930.0,1.5754]
[1766566072960,4.9605,2930.6,2929.9,0.002]
[1766566073253,4.9605,2930.4,2929.9,0.002]
[1766566074673,4.9605,2930.4,2929.9,3.41508476]
[1766566075150,5.8415,2930.4,2929.9,0.002]
[1766566077753,5.8415,2930.4,2929.6,3.41340619]
[1766566077940,4.9605,2930.2,2929.4,5.81144366]
[1766566078252,4.9605,2930.2,2929.5,1.5168]
[1766566078549,4.9605,2930.2,2929.6,3.41339231]
[1766566078734,4.9605,2930.2,2929.6,4.92309231]
[1766566079048,4.9605,2930.2,2929.6,4.92312286]
[1766566079252,5.61143766,2930.2,2929.7,1.54383318]
[1766566079451,4.9605,2930.6,2929.7,1.54383318]
[1766566079655,0.882,2930.4,2929.7,1.54383318]
[1766566080238,0.882,2930.4,2929.7,1.5097]
[1766566080755,5.8425,2930.4,2929.7,1.5097]
[1766566080959,4.9605,2930.3,2929.7,1.5097]
[1766566081256,1.46625,2930.4,2929.8,1.4955]
[1766566081434,4.5876,2930.6,2929.8,1.4955]
[1766566081638,5.4696,2930.6,2929.9,0.03413085]
[1766566081839,0.001,2930.7,2930.0,1.4886]
[1766566082926,4.5886,2930.7,2930.0,1.4886]
[1766566084275,4.5886,2930.7,2930.0,4.90156764]
[1766566084464,4.5886,2930.7,2930.1,1.4749]
[1766566084641,5.47685743,2930.7,2930.1,1.4749]
[1766566087374,4.5876,2930.6,2930.1,1.4749]
[1766566087671,4.5876,2930.6,2929.9,1.455]
[1766566087871,4.5876,2930.6,2930.0,1.4486]
[1766566089189,4.5876,2930.6,2930.1,1.4421]
[1766566089940,5.56468998,2930.6,2930.1,1.4421]
[1766566092471,4.5876,2930.5,2929.9,1.4254]
[1766566092684,4.5876,2930.5,2929.9,0.002]
[1766566092855,4.5876,2930.3,2929.6,0.002]
[1766566093060,5.13456,2930.3,2929.6,3.41543512]
[1766566094157,5.13456,2930.3,2929.6,0.002]
[1766566094475,5.13456,2930.3,2929.6,3.41540104]
[1766566095278,5.13456,2930.3,2929.6,0.002]
[1766566095582,5.13456,2930.3,2929.6,1.4092]
[1766566095776,4.5876,2930.1,2929.6,1.4092]
[1766566096371,4.5876,2930.1,2929.6,0.002]
[1766566100469,1.82590669,2930.2,2928.5,0.002]
[1766566100470,4.5876,2929.9,2928.5,0.002]
[1766566100671,1.8395367,2930.2,2928.7,4.6788]
[1766566100672,4.5876,2929.7,2928.7,4.6788]
[1766566100977,10.2385584,2930.1,2928.7,0.002]
[1766566100978,4.5876,2929.5,2928.7,0.002]
[1766566101168,4.5876,2929.5,2928.5,0.002]
[1766566101780,4.5876,2929.3,2928.4,0.002]
[1766566101968,4.5876,2929.3,2927.9,4.6788]
[1766566102158,4.5876,2929.1,2928.0,4.6768]
[1766566102359,4.5876,2928.9,2928.0,4.6768]
[1766566102560,5.4706,2928.8,2928.0,4.6768]
[1766566103177,5.4706,2928.8,2928.1,4.6768]
[1766566104681,5.4706,2928.8,2928.0,0.002]
[1766566104682,4.5876,2928.6,2928.0,0.002]
[1766566104885,4.5876,2928.4,2928.0,0.002]
[1766566105085,4.5876,2928.4,2928.0,4.6768]
[1766566105292,4.5876,2928.4,2928.0,4.6685555]
[1766566105984,0.883,2928.3,2928.0,4.6685555]
[1766566107790,5.48423001,2928.3,2927.9,0.002]
[1766566107990,5.48423001,2928.3,2927.5,0.002]
[1766566107991,0.01363001,2927.7,2927.5,0.002]
[1766566108487,5.4716,2927.8,2926.8,3.4186841]
[1766566108488,0.01363001,2927.6,2926.8,3.4186841]
[1766566108693,4.59098551,2927.6,2927.1,4.6768]
[1766566109271,0.01363001,2927.4,2927.1,4.6768]
[1766566109669,4.59098551,2927.6,2927.1,4.6768]
[1766566109869,0.89763001,2927.5,2927.1,4.6768]
[1766566110191,5.48523001,2927.5,2926.9,4.6768]
[1766566110897,4.5876,2928.0,2927.2,4.6768]
[1766566111071,0.884,2927.7,2927.4,4.6768]
[1766566111493,0.01363001,2927.9,2927.4,4.6768]
[1766566111677,0.884,2927.8,2927.5,4.67735883]
[1766566112079,0.8737527,2928.0,2927.5,4.67735883]
[1766566112478,0.01363001,2928.1,2927.5,4.67735883]
[1766566112675,0.89763001,2928.1,2927.5,4.67735883]
[1766566112881,0.89763001,2928.1,2927.6,4.6432]
[1766566113196,4.57413001,2928.1,2927.6,4.6432]
[1766566114891,4.57413001,2928.1,2927.6,8.05894227]
[1766566115092,4.57413001,2928.1,2927.6,8.04869637]
[1766566115289,4.57413001,2928.1,2927.6,4.6329541]
[1766566115505,4.57413001,2928.1,2927.4,4.4567]
[1766566115506,5.4628037,2928.1,2927.4,4.4567]
[1766566115802,4.57413001,2928.1,2927.5,4.4567]
[1766566119610,4.57413001,2928.1,2927.5,4.4587]
[1766566119912,4.57413001,2928.1,2927.0,4.4567]
[1766566119913,4.8104,2927.7,2927.0,4.4567]
[1766566120090,4.8104,2927.7,2927.1,4.4567]
[1766566120428,4.8104,2927.7,2926.9,0.002]
[1766566120709,4.8104,2927.5,2926.9,0.002]
[1766566121507,4.8104,2927.5,2926.9,3.41855276]
[1766566121708,4.8104,2927.5,2926.9,7.87525276]
[1766566122011,5.70903001,2927.8,2927.0,4.4567]
[1766566124310,4.8104,2927.7,2927.0,4.4567]
[1766566125012,5.7228579,2927.7,2927.0,4.4567]
[1766566125211,5.73648791,2927.7,2927.0,4.4567]
[1766566126411,5.73648791,2927.7,2927.0,7.87315791]
[1766566128789,4.82403001,2927.7,2927.1,4.4567]
[1766566129006,4.8104,2927.7,2927.1,4.4567]
[1766566130088,4.82403001,2927.7,2927.1,4.4567]
[1766566130609,4.82403001,2927.7,2927.0,0.002]
[1766566130815,4.8104,2927.6,2927.0,0.002]
[1766566131014,5.63436904,2927.6,2927.0,0.002]
[1766566131516,5.63436904,2927.6,2927.1,4.4567]
[1766566131819,4.8104,2927.6,2927.1,4.4567]
[1766566132621,4.8104,2927.6,2927.2,4.49086233]
[1766566132919,0.01363001,2927.8,2927.2,3.45038785]
[1766566133134,4.82403001,2927.8,2927.3,4.4567]
[1766566136527,4.82403001,2927.8,2927.3,7.87281713]
[1766566136729,4.82403001,2927.8,2927.3,4.4567]